[Event "FIDE WCCC Girls-10 2024"]
[Site "Montesilvano"]
[Date "2024.11.23"]
[Round "8.7"]
[White "Ahmadli, Mehriban"]
[Black "Filippova, Milana"]
[Result "0-1"]
[Annotator "NA RC"]
[ECO "C97"]
[WhiteElo "1624"]
[BlackElo "1687"]
[PlyCount "132"]
[EventDate "2024.11.18"]
[EventType "swiss"]
[EventCountry "ITA"]
[SourceTitle "playchess.com"]
[Source "ChessBase"]
[SourceQuality "1"]
[TimeControl "5400+30"]

1. e4 {[%emt 0:00:39]} e5 {[%emt 0:00:08]} 2. Nf3 {[%emt 0:00:06]} Nc6 {[%emt 0:00:04]} 3. Bb5 {[%emt 0:00:10]} a6 {[%emt 0:00:18]} 4. Ba4 {[%emt 0:00:08]} Nf6 {[%emt 0:00:13]} 5. O-O {[%emt 0:00:12]} Be7 {[%emt 0:00:11]} 6. Re1 {[%emt 0:00:28]} b5 {[%emt 0:00:15]} 7. Bb3 {[%emt 0:00:07]} d6 {[%emt 0:00:09]} 8. c3 {[%emt 0:00:16]} O-O {[%emt 0:00:36]} 9. h3 {[%emt 0:00:13]} Na5 {[%emt 0:00:27]} 10. Bc2 {[%emt 0:00:10]} c5 {[%emt 0:00:13]} 11. d4 {[%emt 0:03:49]} Qc7 {[%emt 0:00:05]} 12. d5 {[%emt 0:01:06]} Bd7 {[%emt 0:00:27]} 13. Nbd2 {[%emt 0:00:28]} c4 {[%emt 0:01:08]} 14. Nf1 {[%emt 0:00:33]} Nb7 {[%emt 0:00:53]} 15. Ng3 {[%emt 0:04:40]} g6 {[%emt 0:01:15]} 16. Be3 {[%emt 0:05:04]} Nc5 {[%emt 0:01:11]} 17. Bxc5 {[%emt 0:00:43]} Qxc5 {[%emt 0:00:09]} 18. Qd2 {[%emt 0:00:45]} Rfb8 {[%emt 0:10:26]} 19. a3 {[%emt 0:02:47]} a5 {[%emt 0:02:09]} 20. Red1 {[%emt 0:09:37]} Ne8 {[%emt 0:14:24]} 21. Kh2 {[%emt 0:11:25]} Ra7 {[%emt 0:02:02]} 22. Ng1 {[%emt 0:03:15]} Rab7 {[%emt 0:03:40]} 23. f4 {[%emt 0:03:59]} b4 {[%emt 0:15:31]} 24. fxe5 {[%emt 0:06:23]} dxe5 {[%emt 0:00:30]} 25. Nf3 {[%emt 0:01:09]} bxa3 {[%emt 0:04:05]} 26. bxa3 {[%emt 0:02:43]} f6 {[%emt 0:01:20]} 27. h4 {[%emt 0:04:07]} Rb2 {[%emt 0:04:24]} 28. h5 {[%emt 0:02:18]} Kg7 {[%emt 0:01:05]} 29. a4 {[%emt 0:05:57]} Nd6 {[%emt 0:03:19]} 30. Re1 {[%emt 0:09:54]} Nf7 {[%emt 0:01:55]} 31. Reb1 {[%emt 0:02:29]} Rxb1 {[%emt 0:02:39]} 32. Rxb1 {[%emt 0:00:28]} Rxb1 {[%emt 0:00:42]} 33. Bxb1 {[%emt 0:00:00]} Bxa4 {[%emt 0:02:02]} 34. hxg6 {[%emt 0:00:41]} hxg6 {[%emt 0:00:15]} 35. Ba2 {[%emt 0:03:59]} Nh6 {[%emt 0:04:50]} 36. Qe2 {[%emt 0:03:32]} Ng4+ {[%emt 0:02:01]} 37. Kh1 {[%emt 0:00:30]} Bb5 {[%emt 0:02:35]} 38. Nh4 {[%emt 0:04:12]} Nh6 {[%emt 0:05:48]} 39. Nf3 {[%emt 0:03:14]} Bd8 {[%emt 0:03:00]} 40. Qd2 {[%emt 0:03:37]} Ng4 {[%emt 0:02:59]} 41. Nf1 {[%emt 0:03:29]} Nf2+ {[%emt 0:00:47]} 42. Kh2 {[%emt 0:00:11]} Nxe4 {[%emt 0:01:50]} 43. Qc2 {[%emt 0:00:50]} f5 {[%emt 0:02:35]} 44. Bb1 {[%emt 0:01:21]} Qxd5 {[%emt 0:00:26]} 45. Ne3 {[%emt 0:00:22]} Qc5 {[%emt 0:03:17]} 46. Qc1 {[%emt 0:00:51]} Bb6 {[%emt 0:00:59]} 47. Nf1 {[%emt 0:00:28]} Bc6 {[%emt 0:00:55]} 48. N1d2 {[%emt 0:00:31]} Nxd2 {[%emt 0:00:30]} 49. Qxd2 {[%emt 0:00:30]} Bxf3 {[%emt 0:01:32]} 50. gxf3 {[%emt 0:00:30]} Qg1+ {[%emt 0:00:23]} 51. Kh3 {[%emt 0:00:00]} Qh1+ {[%emt 0:01:18]} 52. Qh2 {[%emt 0:00:24]} Qxf3+ {[%emt 0:00:10]} 53. Qg3 {[%emt 0:00:06]} Qxg3+ {[%emt 0:00:33]} 54. Kxg3 {[%emt 0:00:01]} a4 {[%emt 0:00:17]} 55. Ba2 {[%emt 0:00:04]} Ba5 {[%emt 0:00:04]} 56. Bxc4 {[%emt 0:00:04]} Bxc3 {[%emt 0:00:05]} 57. Kf3 {[%emt 0:00:04]} g5 {[%emt 0:00:19]} 58. Be6 {[%emt 0:00:18]} Kf6 {[%emt 0:00:06]} 59. Ba2 {[%emt 0:00:06]} g4+ {[%emt 0:00:13]} 60. Kg3 {[%emt 0:00:05]} Kg5 {[%emt 0:00:18]} 61. Bb1 {[%emt 0:00:13]} f4+ {[%emt 0:00:09]} 62. Kf2 {[%emt 0:00:11]} Bd4+ {[%emt 0:00:19]} 63. Kg2 {[%emt 0:00:12]} a3 {[%emt 0:00:11]} 64. Ba2 {[%emt 0:00:10]} e4 {[%emt 0:00:08]} 65. Kf1 {[%emt 0:00:07]} g3 {[%emt 0:00:15]} 66. Bb1 {[%emt 0:00:08]} f3 {[%emt 0:00:08]} 0-1

[Event "FIDE WCCC Girls-10 2024"]
[Site "Montesilvano"]
[Date "2024.11.23"]
[Round "8.8"]
[White "Pooja Shree R"]
[Black "Wang, Yi Xuan"]
[Result "1-0"]
[Annotator "NA RC"]
[ECO "B35"]
[WhiteElo "1615"]
[BlackElo "1668"]
[PlyCount "193"]
[EventDate "2024.11.18"]
[EventType "swiss"]
[EventCountry "ITA"]
[SourceTitle "playchess.com"]
[Source "ChessBase"]
[SourceQuality "1"]
[TimeControl "5400+30"]

1. e4 {[%emt 0:00:37]} c5 {[%emt 0:00:49]} 2. Nf3 {[%emt 0:00:56]} g6 {[%emt 0:01:01]} 3. d4 {[%emt 0:00:14]} cxd4 {[%emt 0:00:16]} 4. Nxd4 {[%emt 0:00:09]} Bg7 {[%emt 0:00:21]} 5. Nc3 {[%emt 0:00:08]} Nc6 {[%emt 0:00:33]} 6. Be3 {[%emt 0:00:30]} Nf6 {[%emt 0:00:38]} 7. f3 {[%emt 0:00:41]} O-O {[%emt 0:01:24]} 8. Bc4 {[%emt 0:00:29]} Qb6 {[%emt 0:09:11]} 9. Bb3 {[%emt 0:00:24]} Nxe4 {[%emt 0:10:21]} 10. Nd5 {[%emt 0:00:36]} Qa5+ {[%emt 0:02:44]} 11. c3 {[%emt 0:00:13]} Nf6 {[%emt 0:06:11]} 12. Nxc6 {[%emt 0:00:27]} dxc6 {[%emt 0:01:20]} 13. Nxe7+ {[%emt 0:00:10]} Kh8 {[%emt 0:00:18]} 14. Nxc8 {[%emt 0:00:20]} Raxc8 {[%emt 0:01:10]} 15. O-O {[%emt 0:00:29]} Rcd8 {[%emt 0:01:52]} 16. Qc1 {[%emt 0:05:57]} a6 {[%emt 0:06:01]} 17. Re1 {[%emt 0:05:21]} Nd5 {[%emt 0:06:05]} 18. Bh6 {[%emt 0:02:48]} Rfe8 {[%emt 0:03:20]} 19. Rxe8+ {[%emt 0:09:16]} Rxe8 {[%emt 0:00:08]} 20. Bxg7+ {[%emt 0:00:27]} Kxg7 {[%emt 0:00:09]} 21. Qd2 {[%emt 0:00:23]} Qc5+ {[%emt 0:01:58]} 22. Kh1 {[%emt 0:09:45]} Qe3 {[%emt 0:02:39]} 23. Qxe3 {[%emt 0:06:28]} Rxe3 {[%emt 0:00:39]} 24. Bxd5 {[%emt 0:03:07]} cxd5 {[%emt 0:00:05]} 25. Kg1 {[%emt 0:00:31]} Re2 {[%emt 0:00:20]} 26. Rb1 {[%emt 0:03:39]} f5 {[%emt 0:01:03]} 27. a4 {[%emt 0:06:00]} Rc2 {[%emt 0:01:24]} 28. f4 {[%emt 0:02:53]} Kf6 {[%emt 0:00:49]} 29. h4 {[%emt 0:00:33]} Ke6 {[%emt 0:42:11]} 30. Kh2 {[%emt 0:01:35]} h5 {[%emt 0:00:00]} 31. Re1+ {[%emt 0:09:21]} Kd6 {[%emt 0:00:00]} 32. Re8 {[%emt 0:00:21]} Rxb2 {[%emt 0:00:00]} 33. Rg8 {[%emt 0:00:07]} Ra2 {[%emt 0:00:00]} 34. Rxg6+ {[%emt 0:00:21]} Ke7 {[%emt 0:00:00]} 35. Rg7+ {[%emt 0:04:02]} Kf6 {[%emt 0:00:00]} 36. Rxb7 {[%emt 0:00:05]} Rxa4 {[%emt 0:00:00]} 37. Rb6+ {[%emt 0:00:38]} Kg7 {[%emt 0:00:00]} 38. Kg3 {[%emt 0:03:16]} Ra3 {[%emt 0:00:00]} 39. Kf2 {[%emt 0:00:56]} a5 {[%emt 0:00:00]} 40. Rb5 {[%emt 0:00:36]} Rxc3 {[%emt 0:00:00]} 41. Rxd5 {[%emt 0:02:58]} a4 {[%emt 0:00:00]} 42. Rxf5 {[%emt 0:01:44]} Kg6 {[%emt 0:00:00]} 43. Rg5+ {[%emt 0:01:11]} Kh6 {[%emt 0:00:00]} 44. Ra5 {[%emt 0:00:07]} a3 {[%emt 0:00:00]} 45. Ra6+ {[%emt 0:09:59]} Kg7 {[%emt 0:00:00]} 46. Ra5 {[%emt 0:05:00]} Rc2+ {[%emt 0:00:00]} 47. Kf3 {[%emt 0:00:20]} a2 {[%emt 0:00:00]} 48. g3 {[%emt 0:03:45]} Kf6 {[%emt 0:00:00]} 49. Ke3 {[%emt 0:02:06]} Rg2 {[%emt 0:00:00]} 50. Kf3 {[%emt 0:02:24]} Rc2 {[%emt 0:00:00]} 51. Ra6+ {[%emt 0:00:40]} Kf5 {[%emt 0:00:00]} 52. Ra5+ {[%emt 0:00:25]} Kf6 {[%emt 0:00:00]} 53. g4 {[%emt 0:00:41]} Rc3+ {[%emt 0:00:00]} 54. Ke4 {[%emt 0:00:43]} hxg4 {[%emt 0:00:00]} 55. Ra6+ {[%emt 0:00:16]} Kf7 {[%emt 0:00:00]} 56. Rxa2 {[%emt 0:00:18]} Rc4+ {[%emt 0:00:00]} 57. Kf5 {[%emt 0:00:23]} Rc1 {[%emt 0:00:00]} 58. Kxg4 {[%emt 0:00:41]} Rg1+ {[%emt 0:00:00]} 59. Kf5 {[%emt 0:00:39]} Rh1 {[%emt 0:00:00]} 60. Ra7+ {[%emt 0:00:07]} Kg8 {[%emt 0:00:00]} 61. h5 {[%emt 0:00:37]} Rh2 {[%emt 0:00:00]} 62. Kg6 {[%emt 0:00:17]} Rg2+ {[%emt 0:00:00]} 63. Kh6 {[%emt 0:00:14]} Rf2 {[%emt 0:00:00]} 64. Kg5 {[%emt 0:00:56]} Rg2+ {[%emt 0:00:00]} 65. Kf6 {[%emt 0:00:11]} Rh2 {[%emt 0:00:00]} 66. f5 {[%emt 0:00:05]} Rh1 {[%emt 0:00:00]} 67. Rg7+ {[%emt 0:00:41]} Kh8 {[%emt 0:00:00]} 68. Ra7 {[%emt 0:00:59]} Kg8 {[%emt 0:00:00]} 69. Ra4 {[%emt 0:00:28]} Rh2 {[%emt 0:00:36]} 70. Kg5 {[%emt 0:00:11]} Rg2+ {[%emt 0:01:13]} 71. Rg4 {[%emt 0:00:14]} Rf2 {[%emt 0:00:29]} 72. Kg6 {[%emt 0:00:25]} Rf1 {[%emt 0:00:51]} 73. h6 {[%emt 0:00:06]} Rf2 {[%emt 0:00:48]} 74. Rg5 {[%emt 0:00:22]} Rf1 {[%emt 0:00:35]} 75. f6 {[%emt 0:00:54]} Kh8 {[%emt 0:12:52]} 76. Rf5 {[%emt 0:00:35]} Rg1+ {[%emt 0:00:25]} 77. Kf7 {[%emt 0:00:07]} Kh7 {[%emt 0:00:25]} 78. Rh5 {[%emt 0:00:21]} Re1 {[%emt 0:00:17]} 79. Kf8 {[%emt 0:00:30]} Re2 {[%emt 0:00:14]} 80. Rh1 {[%emt 0:01:05]} Re3 {[%emt 0:01:09]} 81. f7 {[%emt 0:00:51]} Re2 {[%emt 0:00:38]} 82. Rg1 {[%emt 0:00:24]} Re3 {[%emt 0:01:42]} 83. Rg7+ {[%emt 0:00:17]} Kh8 {[%emt 0:00:31]} 84. Rg1 {[%emt 0:00:10]} Kh7 {[%emt 0:00:07]} 85. Ra1 {[%emt 0:00:13]} Re2 {[%emt 0:01:50]} 86. Ra6 {[%emt 0:01:08]} Re1 {[%emt 0:00:07]} 87. Ra8 {[%emt 0:01:40]} Re2 {[%emt 0:00:47]} 88. Re8 {[%emt 0:00:07]} Rf2 {[%emt 0:01:51]} 89. Ke7 {[%emt 0:00:08]} Re2+ {[%emt 0:00:12]} 90. Kd6 {[%emt 0:00:10]} Rd2+ {[%emt 0:00:03]} 91. Kc5 {[%emt 0:00:08]} Rc2+ {[%emt 0:00:04]} 92. Kd4 {[%emt 0:00:03]} Rd2+ {[%emt 0:00:04]} 93. Ke3 {[%emt 0:00:16]} Rd6 {[%emt 0:00:38]} 94. f8=Q {[%emt 0:00:35]} Re6+ {[%emt 0:00:02]} 95. Kd4 {[%emt 0:00:08]} Rd6+ {[%emt 0:00:26]} 96. Kc5 {[%emt 0:00:01]} Rxh6 {[%emt 0:00:28]} 97. Qg8# {[%emt 0:00:02]} 1-0

[Event "FIDE WCCC Girls-10 2024"]
[Site "Montesilvano"]
[Date "2024.11.23"]
[Round "8.9"]
[White "Isakhanyan, Nare"]
[Black "Peng, Jingyi(Gd)"]
[Result "0-1"]
[Annotator "NA RC"]
[ECO "D36"]
[WhiteElo "1540"]
[BlackElo "1720"]
[PlyCount "104"]
[EventDate "2024.11.18"]
[EventType "swiss"]
[EventCountry "ITA"]
[SourceTitle "playchess.com"]
[Source "ChessBase"]
[SourceQuality "1"]
[TimeControl "5400+30"]

1. d4 {[%emt 0:00:02]} Nf6 {[%emt 0:00:03]} 2. c4 {[%emt 0:00:08]} e6 {[%emt 0:00:05]} 3. Nc3 {[%emt 0:00:05]} d5 {[%emt 0:00:02]} 4. cxd5 {[%emt 0:00:11]} exd5 {[%emt 0:00:05]} 5. Bg5 {[%emt 0:00:03]} Be7 {[%emt 0:00:18]} 6. e3 {[%emt 0:00:15]} c6 {[%emt 0:00:07]} 7. Bd3 {[%emt 0:00:08]} O-O {[%emt 0:00:10]} 8. Qc2 {[%emt 0:00:13]} h6 {[%emt 0:00:22]} 9. Bh4 {[%emt 0:01:17]} Be6 {[%emt 0:00:56]} 10. Nf3 {[%emt 0:00:15]} Nbd7 {[%emt 0:00:12]} 11. O-O {[%emt 0:00:43]} Rc8 {[%emt 0:09:36]} 12. Ne5 {[%emt 0:06:27]} Nxe5 {[%emt 0:01:04]} 13. dxe5 {[%emt 0:00:08]} Nd7 {[%emt 0:00:04]} 14. Bxe7 {[%emt 0:00:09]} Qxe7 {[%emt 0:00:05]} 15. f4 {[%emt 0:00:24]} f5 {[%emt 0:00:11]} 16. Ne2 {[%emt 0:04:17]} c5 {[%emt 0:01:21]} 17. Ng3 {[%emt 0:00:36]} Qf7 {[%emt 0:03:13]} 18. Rfd1 {[%emt 0:02:23]} a6 {[%emt 0:04:49]} 19. a4 {[%emt 0:01:17]} c4 {[%emt 0:00:45]} 20. Be2 {[%emt 0:00:17]} Nc5 {[%emt 0:00:14]} 21. Bf3 {[%emt 0:11:05]} Nb3 {[%emt 0:04:34]} 22. Rab1 {[%emt 0:03:42]} Rc5 {[%emt 0:02:51]} 23. Ne2 {[%emt 0:01:46]} b5 {[%emt 0:09:19]} 24. axb5 {[%emt 0:00:44]} axb5 {[%emt 0:00:07]} 25. Nd4 {[%emt 0:01:08]} Nxd4 {[%emt 0:01:14]} 26. Rxd4 {[%emt 0:01:06]} Ra8 {[%emt 0:05:21]} 27. Qd2 {[%emt 0:07:07]} Kh7 {[%emt 0:05:41]} 28. Rd1 {[%emt 0:06:13]} Qa7 {[%emt 0:06:14]} 29. h3 {[%emt 0:08:08]} Qb6 {[%emt 0:01:18]} 30. Kh2 {[%emt 0:02:13]} Ra2 {[%emt 0:07:31]} 31. Qc1 {[%emt 0:07:48]} Qb7 {[%emt 0:00:54]} 32. b4 {[%emt 0:01:48]} Rc8 {[%emt 0:01:27]} 33. Qb1 {[%emt 0:03:27]} Ra3 {[%emt 0:08:42]} 34. Bxd5 {[%emt 0:00:51]} Bxd5 {[%emt 0:00:31]} 35. Rxd5 {[%emt 0:01:48]} Rf8 {[%emt 0:00:06]} 36. e6 {[%emt 0:06:06]} Rf6 {[%emt 0:04:19]} 37. Rxf5 {[%emt 0:15:18]} Rg6 {[%emt 0:00:09]} 38. e4 {[%emt 0:02:28]} Rd3 {[%emt 0:04:14]} 39. Re5 {[%emt 0:01:05]} Qb6 {[%emt 0:02:56]} 40. Rxd3 {[%emt 0:01:28]} Qf2 {[%emt 0:00:12]} 41. Qg1 {[%emt 0:04:47]} Qxf4+ {[%emt 0:00:05]} 42. g3 {[%emt 0:00:06]} Qxe5 {[%emt 0:00:14]} 43. Rd5 {[%emt 0:01:19]} Qxe4 {[%emt 0:00:16]} 44. Rxb5 {[%emt 0:00:09]} c3 {[%emt 0:00:47]} 45. Qg2 {[%emt 0:01:20]} Qxe6 {[%emt 0:00:20]} 46. Rc5 {[%emt 0:00:32]} Qb3 {[%emt 0:00:36]} 47. b5 {[%emt 0:00:20]} Qb4 {[%emt 0:00:27]} 48. Rc7 {[%emt 0:00:35]} Qb2 {[%emt 0:01:10]} 49. Kh1 {[%emt 0:00:42]} Re6 {[%emt 0:00:58]} 50. Qf1 {[%emt 0:00:21]} Qc2 {[%emt 0:01:59]} 51. Rxc3 {[%emt 0:00:38]} Qxc3 {[%emt 0:00:14]} 52. Qf5+ {[%emt 0:00:04]} Rg6 {[%emt 0:00:06]} 0-1

[Event "FIDE WCCC Girls-10 2024"]
[Site "Montesilvano"]
[Date "2024.11.23"]
[Round "8.10"]
[White "Bakhshi, Rana"]
[Black "Yi, Ruiyu"]
[Result "1-0"]
[Annotator "NA RC"]
[ECO "D36"]
[WhiteElo "1727"]
[BlackElo "1571"]
[PlyCount "109"]
[EventDate "2024.11.18"]
[EventType "swiss"]
[EventCountry "ITA"]
[SourceTitle "playchess.com"]
[Source "ChessBase"]
[SourceQuality "1"]
[TimeControl "5400+30"]

1. d4 {[%emt 0:00:43]} d5 {[%emt 0:00:07]} 2. c4 {[%emt 0:01:04]} e6 {[%emt 0:00:04]} 3. Nc3 {[%emt 0:00:53]} Nf6 {[%emt 0:00:09]} 4. cxd5 {[%emt 0:01:17]} exd5 {[%emt 0:00:05]} 5. Bg5 {[%emt 0:01:23]} Be7 {[%emt 0:00:07]} 6. Qc2 {[%emt 0:00:58]} c6 {[%emt 0:00:09]} 7. e3 {[%emt 0:01:49]} h6 {[%emt 0:00:17]} 8. Bh4 {[%emt 0:00:35]} Nbd7 {[%emt 0:01:42]} 9. Bd3 {[%emt 0:00:35]} a5 {[%emt 0:00:58]} 10. a4 {[%emt 0:05:50]} O-O {[%emt 0:01:00]} 11. Nge2 {[%emt 0:00:16]} Ne8 {[%emt 0:01:11]} 12. Bxe7 {[%emt 0:00:52]} Qxe7 {[%emt 0:00:07]} 13. O-O {[%emt 0:01:58]} Nd6 {[%emt 0:00:27]} 14. Ng3 {[%emt 0:02:46]} Nf6 {[%emt 0:03:01]} 15. Rae1 {[%emt 0:01:23]} Be6 {[%emt 0:03:23]} 16. f3 {[%emt 0:02:05]} Qd7 {[%emt 0:12:31]} 17. Qf2 {[%emt 0:04:35]} b5 {[%emt 0:01:19]} 18. h3 {[%emt 0:03:08]} b4 {[%emt 0:04:27]} 19. Nb1 {[%emt 0:01:35]} Rac8 {[%emt 1:08:56]} 20. e4 {[%emt 0:02:15]} dxe4 {[%emt 0:00:00]} 21. fxe4 {[%emt 0:06:50]} Bc4 {[%emt 0:00:00]} 22. Bxc4 {[%emt 0:01:15]} Nxc4 {[%emt 0:00:00]} 23. e5 {[%emt 0:01:03]} Nd5 {[%emt 0:00:00]} 24. b3 {[%emt 0:03:39]} Ncb6 {[%emt 0:00:00]} 25. Nd2 {[%emt 0:02:46]} Nc3 {[%emt 0:00:00]} 26. Nf5 {[%emt 0:03:18]} Kh7 {[%emt 0:00:00]} 27. Ne4 {[%emt 0:03:11]} Nxe4 {[%emt 0:00:00]} 28. Rxe4 {[%emt 0:01:05]} Qe6 {[%emt 0:00:00]} 29. Qh4 {[%emt 0:05:05]} Nd5 {[%emt 0:00:00]} 30. Rg4 {[%emt 0:01:48]} Rg8 {[%emt 0:00:00]} 31. Rf3 {[%emt 0:06:27]} g5 {[%emt 0:00:00]} 32. Qf2 {[%emt 0:03:08]} Nf4 {[%emt 0:00:00]} 33. Nd6 {[%emt 0:05:27]} Rc7 {[%emt 0:00:00]} 34. Qc2+ {[%emt 0:07:19]} Qg6 {[%emt 0:00:00]} 35. Ne4 {[%emt 0:03:12]} Nd5 {[%emt 0:00:00]} 36. h4 {[%emt 0:01:36]} Kh8 {[%emt 0:00:45]} 37. hxg5 {[%emt 0:00:39]} h5 {[%emt 0:00:43]} 38. Rh4 {[%emt 0:00:41]} Rg7 {[%emt 0:03:12]} 39. g4 {[%emt 0:00:57]} Rh7 {[%emt 0:00:39]} 40. gxh5 {[%emt 0:04:00]} Rxh5 {[%emt 0:00:27]} 41. Rxh5+ {[%emt 0:02:11]} Qxh5 {[%emt 0:00:02]} 42. Qg2 {[%emt 0:01:09]} Qg6 {[%emt 0:01:04]} 43. Rh3+ {[%emt 0:00:36]} Kg7 {[%emt 0:00:13]} 44. Rh6 {[%emt 0:00:14]} Qf5 {[%emt 0:00:29]} 45. Rh4 {[%emt 0:05:05]} Ne3 {[%emt 0:01:01]} 46. Qe2 {[%emt 0:01:04]} Nd5 {[%emt 0:01:23]} 47. Nf6 {[%emt 0:01:35]} Nc3 {[%emt 0:01:39]} 48. Qf1 {[%emt 0:01:18]} Qxf1+ {[%emt 0:00:32]} 49. Kxf1 {[%emt 0:00:06]} Kg6 {[%emt 0:00:26]} 50. Rh7 {[%emt 0:01:18]} Kxg5 {[%emt 0:00:31]} 51. Rg7+ {[%emt 0:00:16]} Kf4 {[%emt 0:00:14]} 52. e6 {[%emt 0:00:17]} Rc8 {[%emt 0:03:10]} 53. Rxf7 {[%emt 0:00:17]} Kg5 {[%emt 0:00:00]} 54. e7 {[%emt 0:00:13]} Nxa4 {[%emt 0:00:00]} 55. Rf8 {[%emt 0:00:26]} 1-0

[Event "FIDE WCCC Girls-10 2024"]
[Site "Montesilvano"]
[Date "2024.11.23"]
[Round "8.11"]
[White "Khusnitdinova, Husnorakhon"]
[Black "Tran Hoang Bao An"]
[Result "1-0"]
[Annotator "NA RC"]
[ECO "B22"]
[WhiteElo "1626"]
[BlackElo "1714"]
[PlyCount "105"]
[EventDate "2024.11.18"]
[EventType "swiss"]
[EventCountry "ITA"]
[SourceTitle "playchess.com"]
[Source "ChessBase"]
[SourceQuality "1"]
[TimeControl "5400+30"]

1. e4 {[%emt 0:00:04]} c5 {[%emt 0:00:30]} 2. Nf3 {[%emt 0:00:07]} e6 {[%emt 0:00:14]} 3. c3 {[%emt 0:00:06]} d5 {[%emt 0:01:39]} 4. exd5 {[%emt 0:00:09]} Qxd5 {[%emt 0:01:28]} 5. d4 {[%emt 0:00:09]} Nf6 {[%emt 0:01:37]} 6. Be3 {[%emt 0:00:10]} cxd4 {[%emt 0:00:54]} 7. cxd4 {[%emt 0:00:09]} Bb4+ {[%emt 0:01:16]} 8. Nc3 {[%emt 0:00:08]} O-O {[%emt 0:02:23]} 9. Bd3 {[%emt 0:00:38]} Nc6 {[%emt 0:01:05]} 10. O-O {[%emt 0:01:03]} Qh5 {[%emt 0:02:21]} 11. Be2 {[%emt 0:15:15]} Qa5 {[%emt 0:07:30]} 12. Qc2 {[%emt 0:00:51]} a6 {[%emt 0:02:38]} 13. Bd3 {[%emt 0:11:45]} h6 {[%emt 0:04:39]} 14. Rad1 {[%emt 0:01:21]} Bd6 {[%emt 0:01:04]} 15. a3 {[%emt 0:02:10]} Qc7 {[%emt 0:02:00]} 16. Rfe1 {[%emt 0:04:41]} Ng4 {[%emt 0:03:46]} 17. h3 {[%emt 0:02:34]} Nxe3 {[%emt 0:00:24]} 18. fxe3 {[%emt 0:58:10]} Bd7 {[%emt 0:08:08]} 19. Ne4 {[%emt 0:00:00]} Be7 {[%emt 0:01:49]} 20. Rf1 {[%emt 0:00:00]} Rac8 {[%emt 0:03:53]} 21. Qb1 {[%emt 0:00:00]} f5 {[%emt 0:03:56]} 22. Nc3 {[%emt 0:00:00]} Bd6 {[%emt 0:01:32]} 23. Qa2 {[%emt 0:00:00]} Kh8 {[%emt 0:01:23]} 24. Nh4 {[%emt 0:00:00]} Ne7 {[%emt 0:05:24]} 25. Rc1 {[%emt 0:00:00]} Qb8 {[%emt 0:03:29]} 26. Qb1 {[%emt 0:00:00]} Bg3 {[%emt 0:04:59]} 27. Nf3 {[%emt 0:00:00]} Bc6 {[%emt 0:03:01]} 28. Qc2 {[%emt 0:00:00]} Nd5 {[%emt 0:09:44]} 29. Qe2 {[%emt 0:00:00]} Nf6 {[%emt 0:03:44]} 30. Na2 {[%emt 0:00:00]} Be4 {[%emt 0:00:30]} 31. Bc4 {[%emt 0:00:40]} Qd6 {[%emt 0:01:21]} 32. Nb4 {[%emt 0:00:53]} b5 {[%emt 0:01:27]} 33. Bb3 {[%emt 0:00:45]} Rfe8 {[%emt 0:04:02]} 34. Nd3 {[%emt 0:02:46]} Qe7 {[%emt 0:01:30]} 35. Nde5 {[%emt 0:00:49]} Kh7 {[%emt 0:00:47]} 36. Qd2 {[%emt 0:01:52]} Nd7 {[%emt 0:00:26]} 37. Nd3 {[%emt 0:00:43]} Bd6 {[%emt 0:00:44]} 38. Rxc8 {[%emt 0:00:50]} Rxc8 {[%emt 0:00:03]} 39. Rc1 {[%emt 0:00:01]} Rxc1+ {[%emt 0:01:28]} 40. Nxc1 {[%emt 0:00:00]} Nb6 {[%emt 0:00:25]} 41. Ne2 {[%emt 0:00:26]} Nd5 {[%emt 0:02:20]} 42. Kf2 {[%emt 0:00:52]} Bb8 {[%emt 0:01:05]} 43. Qc1 {[%emt 0:00:40]} Bxf3 {[%emt 0:00:27]} 44. Kxf3 {[%emt 0:00:02]} Qb7 {[%emt 0:00:13]} 45. Kf2 {[%emt 0:00:15]} Bd6 {[%emt 0:00:50]} 46. Qc2 {[%emt 0:00:54]} Be7 {[%emt 0:00:11]} 47. Bxd5 {[%emt 0:00:14]} Qxd5 {[%emt 0:00:12]} 48. Nf4 {[%emt 0:00:18]} Qd7 {[%emt 0:00:12]} 49. Qb3 {[%emt 0:00:04]} e5 {[%emt 0:01:17]} 50. dxe5 {[%emt 0:00:02]} Qd2+ {[%emt 0:02:24]} 51. Kf3 {[%emt 0:00:01]} g5 {[%emt 0:00:12]} 52. Qf7+ {[%emt 0:00:05]} Kh8 {[%emt 0:00:05]} 53. Ng6# {[%emt 0:00:04]} 1-0

[Event "FIDE WCCC Girls-10 2024"]
[Site "Montesilvano"]
[Date "2024.11.23"]
[Round "8.12"]
[White "Rekhviashvili, Mariam"]
[Black "Meng, Miranda"]
[Result "1/2-1/2"]
[Annotator "NA RC"]
[ECO "B15"]
[WhiteElo "1610"]
[BlackElo "1675"]
[PlyCount "81"]
[EventDate "2024.11.18"]
[EventType "swiss"]
[EventCountry "ITA"]
[SourceTitle "playchess.com"]
[Source "ChessBase"]
[SourceQuality "1"]
[TimeControl "5400+30"]

1. e4 {[%emt 0:02:31]} c6 {[%emt 0:00:03]} 2. d4 {[%emt 0:00:05]} d5 {[%emt 0:00:03]} 3. Nc3 {[%emt 0:00:05]} dxe4 {[%emt 0:00:04]} 4. Nxe4 {[%emt 0:00:07]} Nf6 {[%emt 0:00:08]} 5. Nxf6+ {[%emt 0:00:05]} exf6 {[%emt 0:00:04]} 6. c3 {[%emt 0:00:05]} Bd6 {[%emt 0:00:12]} 7. Bd3 {[%emt 0:00:04]} O-O {[%emt 0:00:10]} 8. Qc2 {[%emt 0:00:04]} Re8+ {[%emt 0:00:08]} 9. Ne2 {[%emt 0:00:05]} h5 {[%emt 0:00:23]} 10. O-O {[%emt 0:00:05]} h4 {[%emt 0:00:19]} 11. h3 {[%emt 0:00:04]} Be6 {[%emt 0:00:16]} 12. Be3 {[%emt 0:00:49]} Nd7 {[%emt 0:00:19]} 13. Rad1 {[%emt 0:00:50]} Nf8 {[%emt 0:00:14]} 14. c4 {[%emt 0:01:28]} Rc8 {[%emt 0:00:11]} 15. Nc3 {[%emt 0:04:51]} Bb8 {[%emt 0:10:39]} 16. Ne2 {[%emt 0:09:06]} b5 {[%emt 0:07:48]} 17. b3 {[%emt 0:03:49]} a6 {[%emt 0:11:19]} 18. Qd2 {[%emt 0:02:25]} Qe7 {[%emt 0:09:43]} 19. Rfe1 {[%emt 0:05:25]} g6 {[%emt 0:13:10]} 20. Bf4 {[%emt 0:09:16]} Qb7 {[%emt 0:10:50]} 21. Bxb8 {[%emt 0:10:36]} Qxb8 {[%emt 0:02:11]} 22. Qf4 {[%emt 0:04:50]} Qxf4 {[%emt 0:01:36]} 23. Nxf4 {[%emt 0:00:05]} Kg7 {[%emt 0:04:21]} 24. Ne2 {[%emt 0:07:44]} Red8 {[%emt 0:04:28]} 25. Rc1 {[%emt 0:08:52]} g5 {[%emt 0:06:50]} 26. d5 {[%emt 0:09:40]} bxc4 {[%emt 0:04:04]} 27. Bxc4 {[%emt 0:06:49]} cxd5 {[%emt 0:01:51]} 28. Bxa6 {[%emt 0:05:08]} Ra8 {[%emt 0:00:14]} 29. Rc6 {[%emt 0:01:48]} Ra7 {[%emt 0:03:40]} 30. a4 {[%emt 0:01:16]} Rb8 {[%emt 0:02:18]} 31. Nd4 {[%emt 0:02:09]} Bd7 {[%emt 0:01:45]} 32. Rd6 {[%emt 0:00:19]} Ne6 {[%emt 0:01:31]} 33. Nb5 {[%emt 0:01:22]} Bxb5 {[%emt 0:00:32]} 34. Bxb5 {[%emt 0:00:07]} Nc7 {[%emt 0:00:38]} 35. Bf1 {[%emt 0:03:22]} Rxb3 {[%emt 0:00:49]} 36. Rd7 {[%emt 0:00:21]} Rc3 {[%emt 0:02:19]} 37. Ree7 {[%emt 0:00:47]} Rc1 {[%emt 0:01:11]} 38. Rxf7+ {[%emt 0:00:08]} Kg8 {[%emt 0:01:06]} 39. Rg7+ {[%emt 0:01:10]} Kf8 {[%emt 0:00:37]} 40. Rgf7+ {[%emt 0:00:04]} Ke8 {[%emt 0:00:12]} 41. Rfe7+ {[%emt 0:00:12]} 1/2-1/2